bitfinex/quotes_BTCUSD_20251219
["timestamp","ask_amount","ask_price","bid_price","bid_amount"]
[1766121961527,0.84054065,87004.0,86993.0,0.00576]
[1766121961760,0.01149385,87003.0,86993.0,0.00576]
[1766121961951,0.61066372,87004.0,86993.0,0.00576]
[1766121962381,0.01149306,87009.0,86993.0,0.00576]
[1766121962927,0.24136322,87006.0,86993.0,0.00576]
[1766121963180,0.01149346,87006.0,86993.0,0.00576]
[1766121964038,0.01149332,87007.0,86993.0,0.00576]
[1766121964242,0.01149359,87005.0,86993.0,0.00576]
[1766121965235,0.01149346,87006.0,86993.0,0.00576]
[1766121965432,0.24136004,87007.0,86993.0,0.00576]
[1766121965655,0.01149332,87007.0,86993.0,0.00576]
[1766121966287,0.22986656,87007.0,86993.0,0.00576]
[1766121966636,0.01149319,87008.0,86993.0,0.00576]
[1766121966637,0.24135748,87008.0,86993.0,0.00576]
[1766121966831,0.01149319,87008.0,86993.0,0.00576]
[1766121967364,0.24135615,87009.0,86993.0,0.00576]
[1766121967606,0.24135846,87008.0,86993.0,0.00576]
[1766121967811,0.01149332,87007.0,86993.0,0.00576]
[1766121968224,0.01149319,87008.0,86993.0,0.00576]
[1766121968781,0.01149332,87007.0,86993.0,0.00576]
[1766121969498,0.01149346,87006.0,86993.0,0.00576]
[1766121970300,0.24136138,87007.0,86993.0,0.00576]
[1766121970634,0.01149359,87005.0,86993.0,0.00576]
[1766121970979,0.24136637,87005.0,86993.0,0.00576]
[1766121971186,0.01149372,87004.0,86993.0,0.00576]
[1766121971420,0.24138138,87000.0,86993.0,0.00576]
[1766121971640,0.01149438,86999.0,86993.0,0.00576]
[1766121971788,0.57033,86998.0,86993.0,0.00576]
[1766121972630,0.22988769,86999.0,86998.0,0.001099]
[1766121972852,0.47994,86989.0,86974.0,0.03454472]
[1766121973029,1.0617657,86989.0,86977.0,0.05499668]
[1766121973229,1.29168013,86989.0,86977.0,0.05499668]
[1766121973594,0.24141399,86988.0,86977.0,0.05499668]
[1766121973926,0.24141399,86988.0,86977.0,0.05509348]
[1766121974332,0.01149583,86988.0,86977.0,0.05509348]
[1766121974781,0.01149597,86987.0,86978.0,0.00576]
[1766121974940,0.0114961,86986.0,86978.0,0.00576]
[1766121976553,0.24141571,86987.0,86978.0,0.00576]
[1766121976805,0.24141299,86988.0,86978.0,0.00576]
[1766121976806,0.01149583,86988.0,86978.0,0.00576]
[1766121976963,1.29167994,86989.0,86978.0,0.00576]
[1766121976964,1.0617657,86989.0,86978.0,0.00576]
[1766121977366,0.01149583,86988.0,86978.0,0.00576]
[1766121978058,0.0114953,86992.0,86979.0,0.05499668]
[1766121978269,0.01149544,86991.0,86979.0,0.05499668]
[1766121978659,0.0114957,86989.0,86979.0,0.05499668]
[1766121978859,0.0114957,86989.0,86978.0,0.00576]
[1766121978860,0.01149676,86981.0,86978.0,0.00576]
[1766121979037,0.01149755,86975.0,86957.0,0.04614]
[1766121979236,0.01149755,86975.0,86963.0,0.05499668]
[1766121979237,0.47994,86975.0,86963.0,0.05499668]
[1766121979458,0.22993131,86983.0,86963.0,0.05499668]
[1766121979459,0.03084653,87013.0,86985.0,0.01149623]
[1766121979620,0.03084653,87013.0,86979.0,0.01149702]
[1766121979621,0.57033,87019.0,87000.0,0.68173757]
[1766121979818,0.57033,87019.0,87001.0,0.00576]
[1766121980174,0.57033,87019.0,87002.0,0.01149398]
[1766121980380,0.57033,87019.0,87001.0,0.24713405]
[1766121980555,0.5819315,87019.0,87001.0,0.00576]
[1766121980742,0.57043976,87019.0,87001.0,0.00576]
[1766121980939,0.5819315,87019.0,87001.0,0.00576]
[1766121981320,0.57043976,87019.0,87001.0,0.00576]
[1766121981525,0.36601099,87019.0,87002.0,0.20443]
[1766121981758,0.01149187,87018.0,87002.0,0.20443]
[1766121981938,0.47994,87017.0,87001.0,0.00576]
[1766121982123,0.491432,87017.0,87001.0,0.00576]
[1766121982324,0.47994,87017.0,87001.0,0.00576]
[1766121982877,0.47994,87015.0,87001.0,0.00576]
[1766121983781,0.47994,87007.0,87001.0,0.00576]
[1766121983995,1.05027,87007.0,87001.0,0.00576]
[1766121984540,1.28013791,87007.0,87001.0,0.00576]
[1766121984741,0.47994,87010.0,87001.0,0.00576]
[1766121984943,0.47994,87003.0,86986.0,0.04604]
[1766121985194,0.57033,87000.0,86987.0,0.0058]
[1766121985407,0.569231,87000.0,86988.0,0.2414126]
[1766121985606,0.49143332,87007.0,86988.0,0.21599]
[1766121985827,0.47994,87007.0,86988.0,0.21599]
[1766121986191,0.49143332,87007.0,86988.0,0.21599]
[1766121986389,0.49143332,87007.0,86980.0,0.20553]
[1766121986390,0.22988511,87000.0,86980.0,0.20553]
[1766121986614,0.22988511,87000.0,86975.0,0.01149755]
[1766121986615,0.01149517,86993.0,86978.0,0.00466]
[1766121986820,0.70985662,86989.0,86979.0,0.0058]
[1766121986976,0.47994,86987.0,86975.0,0.04604]
[1766121987179,0.47994,86983.0,86975.0,0.05184]
[1766121988670,0.01149597,86987.0,86975.0,0.05184]
[1766121989015,0.2414136,86988.0,86975.0,0.05184]
[1766121991423,0.58182583,86988.0,86975.0,0.05184]
[1766121991627,0.0114961,86986.0,86975.0,0.05184]
[1766121991829,0.01149623,86985.0,86975.0,0.05184]
[1766121992049,1.2916889,86986.0,86975.0,0.05184]
[1766121992465,1.0617661,86986.0,86975.0,0.05184]
[1766121992872,1.05027,86986.0,86975.0,0.05184]
[1766121993073,1.0617661,86986.0,86975.0,0.05184]
[1766121993232,1.05027,86986.0,86975.0,0.05184]
[1766121993422,1.0617661,86986.0,86975.0,0.05184]
[1766121993622,1.05027,86986.0,86975.0,0.05184]
[1766121993842,1.0617661,86986.0,86975.0,0.05184]
[1766121995545,1.05027,86986.0,86975.0,0.05184]
[1766121998188,0.47994,86986.0,86975.0,0.05184]
[1766122000158,0.0114957,86989.0,86976.0,0.20553]
[1766122000578,0.01149583,86988.0,86976.0,0.20553]
[1766122000781,0.01149583,86988.0,86975.0,0.05184]
[1766122001333,1.32287139,86989.0,86975.0,0.05184]
[1766122001497,0.01149557,86990.0,86976.0,0.0058]
[1766122001693,0.58739,86989.0,86977.0,0.0058]
[1766122002142,0.5988857,86989.0,86977.0,0.0058]
[1766122002306,0.58739,86989.0,86977.0,0.0058]
[1766122002517,1.32287116,86989.0,86977.0,0.0058]
[1766122002702,0.58739,86988.0,86977.0,0.0058]
[1766122002903,1.08146,86988.0,86977.0,0.0058]
[1766122004251,1.09295583,86988.0,86977.0,0.0058]
[1766122004462,1.08146,86986.0,86977.0,0.0058]
[1766122004624,0.58739,86985.0,86977.0,0.0058]
[1766122004824,0.59888544,86991.0,86977.0,0.0058]
[1766122005159,0.49407,86984.0,86977.0,0.0058]
[1766122005309,0.01149583,86988.0,86977.0,0.0058]
[1766122005310,0.58739,86982.0,86977.0,0.0058]
[1766122005519,0.24142815,86983.0,86967.0,0.25157]
[1766122005520,0.81733272,86979.0,86971.0,0.0058]
[1766122005719,0.01149742,86976.0,86971.0,0.0058]
[1766122005965,0.8288335,86977.0,86971.0,0.0058]
[1766122006158,1.08146,86974.0,86961.0,0.01626]
[1766122006331,0.58739,86973.0,86962.0,0.0058]
[1766122006534,0.49407,86970.0,86962.0,0.0058]
[1766122008706,0.32162126,86970.0,86962.0,0.0058]
[1766122010915,0.90901126,86970.0,86962.0,0.0058]
[1766122011114,0.58739,86969.0,86962.0,0.0058]
[1766122013118,0.01149795,86972.0,86962.0,0.0058]
[1766122013340,0.82884455,86973.0,86962.0,0.0058]
[1766122013341,0.58739,86973.0,86962.0,0.0058]
[1766122013935,0.49407,86974.0,86963.0,0.18871]
[1766122014530,0.49407,86974.0,86964.0,0.68189133]
[1766122014714,0.0058,86976.0,86965.0,0.39424]
[1766122014937,0.0058,86976.0,86964.0,0.68189133]
[1766122015143,0.0058,86976.0,86965.0,0.39424]
[1766122015340,0.0058,86976.0,86967.0,0.18871]
[1766122016158,0.0058,86976.0,86968.0,0.20553]
[1766122016364,0.0058,86976.0,86968.0,0.39424]
[1766122016606,0.0058,86980.0,86968.0,0.20553]
[1766122016728,0.58739,86990.0,86972.0,0.20553]
[1766122016933,0.0114953,86992.0,86979.0,0.18871]
[1766122016934,0.0058,86987.0,86979.0,0.18871]
[1766122017139,0.0058,86988.0,86979.0,0.18871]
[1766122017340,1.08146,86993.0,86979.0,0.18871]
[1766122017581,0.0058,86992.0,86979.0,0.18871]
[1766122017777,0.59319,86992.0,86979.0,0.18871]
[1766122018098,0.5988853,86992.0,86979.0,0.18871]
[1766122018258,0.0058,86991.0,86979.0,0.18871]
[1766122018885,0.58739,86992.0,86979.0,0.18871]
[1766122019098,0.0058,86991.0,86979.0,0.18871]
[1766122019299,0.0114957,86989.0,86980.0,0.68189133]
[1766122019514,0.24140982,86989.0,86980.0,0.68189133]
[1766122019675,0.01149583,86988.0,86980.0,0.68189133]
[1766122020076,0.001099,86980.0,86975.0,0.0058]
[1766122020397,0.01149623,86985.0,86975.0,0.0058]
[1766122020570,0.0114961,86986.0,86975.0,0.39894]
[1766122020772,0.0114961,86986.0,86976.0,0.18761]
[1766122021287,0.2414182,86986.0,86975.0,0.0058]
[1766122021493,1.32287827,86986.0,86975.0,0.0058]
[1766122021855,0.01149623,86985.0,86975.0,0.0058]
[1766122022174,0.24142094,86985.0,86975.0,0.0058]
[1766122022504,0.01149663,86982.0,86975.0,0.0058]
[1766122022708,0.01149636,86984.0,86975.0,0.0058]
[1766122023367,0.01149649,86983.0,86975.0,0.0058]
[1766122023620,0.01149689,86980.0,86975.0,0.0058]
[1766122023846,0.01149716,86978.0,86975.0,0.0058]
[1766122024083,0.24143643,86980.0,86975.0,0.0058]
[1766122024308,0.47153,86973.0,86962.0,0.19341]
[1766122024535,0.57637,86972.0,86965.0,0.00576]
[1766122024768,0.57637,86971.0,86965.0,0.00576]
[1766122025478,0.01149834,86969.0,86965.0,0.00576]
[1766122025687,0.01149834,86969.0,86961.0,5.049e-05]
[1766122025688,1.08085,86965.0,86962.0,0.00575]
[1766122025916,1.08085,86965.0,86961.0,5.049e-05]
[1766122025917,1.32232851,86965.0,86961.0,4.9e-07]
[1766122026180,1.32232694,86965.0,86961.0,4.9e-07]
[1766122026436,1.31083551,86962.0,86961.0,4.9e-07]
[1766122026649,1.31663551,86962.0,86961.0,4.9e-07]
[1766122029702,1.10070617,86962.0,86961.0,4.9e-07]
[1766122035512,0.22998551,86962.0,86961.0,4.9e-07]
[1766122035648,0.83657651,86962.0,86961.0,4.9e-07]
[1766122035854,1.31553651,86962.0,86961.0,4.9e-07]
[1766122041928,1.08665,86962.0,86961.0,4.9e-07]
[1766122042315,0.47896,86962.0,86961.0,4.9e-07]
[1766122042513,0.01149874,86966.0,86961.0,4.9e-07]
[1766122042725,0.0058,86965.0,86961.0,4.9e-07]
[1766122043122,0.01149901,86964.0,86961.0,4.9e-07]
[1766122043397,0.22998512,86963.0,86961.0,4.9e-07]
[1766122043527,0.01149901,86964.0,86961.0,4.9e-07]
[1766122044165,0.24147963,86964.0,86961.0,4.9e-07]
[1766122044476,0.24727694,86965.0,86961.0,4.9e-07]
[1766122044839,1.08085,86964.0,86961.0,4.9e-07]
[1766122045042,1.31083551,86962.0,86961.0,4.9e-07]
[1766122045927,1.32887865,86962.0,86961.0,4.9e-07]
[1766122047290,0.84340821,86950.0,86934.0,0.43255]
[1766122047548,0.49046099,86949.0,86934.0,0.43291613]
[1766122047744,0.60189,86948.0,86934.0,0.43291613]
[1766122048069,1.08085,86948.0,86934.0,0.43291613]
[1766122048264,0.47896,86946.0,86934.0,0.00036613]
[1766122048570,1.08085,86945.0,86934.0,0.00036613]
[1766122049780,0.60189,86943.0,86934.0,0.00036613]
[1766122050005,0.60189,86940.0,86934.0,0.00036613]
[1766122050584,0.60189,86939.0,86934.0,0.00036613]
[1766122050874,0.47896,86938.0,86926.0,0.0058]
[1766122051090,0.60189,86937.0,86926.0,0.00590987]
[1766122054235,0.01150165,86944.0,86928.0,0.43292]
[1766122054430,0.61339152,86945.0,86930.0,0.68189133]
[1766122054654,0.60189,86945.0,86930.0,1.11481133]
[1766122055296,0.01150178,86943.0,86930.0,1.11481133]
[1766122055490,1.08085,86944.0,86930.0,1.11481133]
[1766122057372,1.08085,86944.0,86930.0,0.43292]
[1766122059376,0.01150178,86943.0,86930.0,0.43292]
[1766122059572,0.01150192,86942.0,86927.0,0.43292]
[1766122059812,0.61289,86942.0,86927.0,0.43292]
[1766122060028,1.11077192,86942.0,86927.0,0.43292]
[1766122060448,1.09927,86942.0,86927.0,0.43292]
[1766122061015,1.11077192,86942.0,86927.0,0.43292]
[1766122061216,1.34081091,86942.0,86927.0,0.43292]
[1766122061421,0.01150218,86940.0,86927.0,0.43292]
[1766122061803,0.61289,86939.0,86927.0,0.43292]
[1766122062387,0.62439231,86939.0,86927.0,0.43292]
[1766122062593,0.24155145,86938.0,86927.0,0.43292]
[1766122062796,0.01150258,86937.0,86927.0,0.43292]
[1766122063018,0.24155145,86938.0,86927.0,0.43292]
[1766122063216,0.01150245,86938.0,86927.0,0.43292]
[1766122063835,0.01150284,86935.0,86926.0,0.00590987]
[1766122064013,0.71643164,86937.0,86926.0,0.00590987]
[1766122064014,0.48638,86937.0,86926.0,0.00590987]
[1766122064214,0.61289,86941.0,86928.0,0.43292]
[1766122064441,0.84293338,86941.0,86928.0,0.43292]
[1766122064617,0.24155813,86936.0,86928.0,0.43292]
[1766122064975,0.01150271,86936.0,86928.0,0.43292]
[1766122065131,0.01150258,86937.0,86928.0,0.43292]
[1766122065317,0.24155464,86937.0,86928.0,0.43292]
[1766122065516,0.01150297,86934.0,86926.0,0.00590987]
[1766122065886,0.24157068,86932.0,86926.0,0.00010987]
[1766122066001,0.01150337,86931.0,86926.0,0.00590987]
[1766122066203,0.48638,86934.0,86926.0,0.00590987]
[1766122066458,0.01150311,86933.0,86926.0,0.00590987]
[1766122066663,0.00098913,86926.0,86921.0,0.43292]
[1766122066839,0.24157894,86929.0,86921.0,0.4329873]
[1766122067195,0.0115039,86927.0,86921.0,6.73e-05]
[1766122067476,0.61289,86926.0,86921.0,6.73e-05]
[1766122067659,1.09927,86926.0,86921.0,6.73e-05]
[1766122067864,0.61289,86925.0,86921.0,6.73e-05]
[1766122068453,0.61289,86925.0,86910.0,0.20553]
[1766122068454,0.011508,86896.0,86880.0,1.46e-06]
[1766122068659,0.011508,86896.0,86861.0,1.11631]
[1766122068660,0.01150906,86888.0,86861.0,1.11631]
[1766122068860,0.05001839,86893.0,86879.0,1.11142]
[1766122069078,0.23017649,86890.0,86881.0,0.62463]
[1766122069279,0.0115088,86890.0,86881.0,0.62463]
[1766122069473,0.0058,86889.0,86881.0,0.62463]
[1766122069746,0.01150906,86888.0,86881.0,0.62463]
[1766122069873,0.24749078,86888.0,86881.0,0.62463]
[1766122070075,0.0115092,86887.0,86881.0,0.62463]
[1766122070292,0.24749136,86888.0,86881.0,0.62463]
[1766122070492,0.24749136,86888.0,86871.0,0.62463]
[1766122070493,0.01150933,86886.0,86871.0,0.62463]
[1766122070864,0.2416975,86886.0,86872.0,0.49168]
[1766122071104,0.01150933,86886.0,86877.0,0.62463]
[1766122071421,0.0058,86888.0,86870.0,0.68833815]
[1766122071578,0.0058,86887.0,86873.0,0.62463]
[1766122071775,0.0058,86887.0,86870.0,0.68833815]
[1766122072016,0.01150946,86885.0,86870.0,0.68833815]
[1766122072176,0.0058,86884.0,86870.0,0.68833815]
[1766122072378,0.24750355,86884.0,86875.0,0.62463]
[1766122072580,0.0058,86884.0,86877.0,1.11631]
[1766122072802,0.01150973,86883.0,86877.0,1.11631]
[1766122073005,0.01150973,86883.0,86877.0,0.62463]
[1766122073167,0.01150973,86883.0,86878.0,0.49168]
[1766122073370,0.01730959,86884.0,86878.0,0.49168]
[1766122073775,0.0058,86884.0,86878.0,0.49168]
[1766122074189,0.0058,86884.0,86880.0,1.11631]
[1766122074390,0.01730959,86884.0,86883.0,0.00088511]
[1766122074613,0.01730959,86884.0,86883.0,1.1e-07]
[1766122074817,0.2475018,86884.0,86883.0,1.1e-07]
[1766122075106,0.0058,86884.0,86883.0,1.1e-07]
[1766122076612,1.10507,86884.0,86883.0,1.1e-07]
[1766122078754,0.24170435,86883.0,86861.0,0.00036659]
[1766122078917,0.01151039,86878.0,86866.0,0.62463]
[1766122079142,0.004915,86877.0,86869.0,1.11631]
[1766122079348,0.004915,86877.0,86875.0,0.0002532]
[1766122079938,0.0058,86876.0,86875.0,0.0002532]
[1766122080747,0.01150999,86881.0,86875.0,0.0002532]
[1766122080968,0.23018108,86889.0,86880.0,0.49168]
[1766122081133,0.0058,86888.0,86880.0,0.49168]
[1766122081333,0.0115092,86887.0,86880.0,0.49168]
[1766122081585,0.24167931,86892.0,86880.0,0.49168]
[1766122081791,0.2474823,86891.0,86880.0,0.62463]
[1766122081967,0.01805763,86893.0,86880.0,0.62463]
[1766122082175,0.01150628,86909.0,86887.0,0.62463]
[1766122082372,0.01730549,86915.0,86891.0,0.62463]
[1766122082543,0.0058,86915.0,86894.0,0.62463]
[1766122082738,0.01730549,86915.0,86896.0,0.62463]
[1766122082996,0.01150562,86914.0,86896.0,0.62463]
[1766122083314,0.01150575,86913.0,86896.0,0.62463]
[1766122083645,0.01150589,86912.0,86897.0,0.49158]
[1766122083812,0.01150602,86911.0,86901.0,0.49158]
[1766122084066,0.24162125,86913.0,86904.0,0.62216]
[1766122084294,0.24162125,86913.0,86905.0,0.49158]
[1766122084503,0.01150562,86914.0,86905.0,0.49158]
[1766122084846,0.01150575,86913.0,86905.0,0.49158]
[1766122085413,0.01150602,86911.0,86897.0,0.62216]
[1766122085553,0.0058,86910.0,86897.0,0.62216]
[1766122085882,0.01730615,86910.0,86897.0,0.62216]
[1766122086085,0.01150628,86909.0,86897.0,0.62216]
[1766122086267,0.24163295,86909.0,86897.0,0.62216]
[1766122086465,0.01150642,86908.0,86897.0,0.62216]
[1766122086685,0.01150655,86907.0,86897.0,0.62216]
[1766122087391,0.01150655,86907.0,86896.0,0.00010098]
[1766122087392,0.23015118,86900.0,86896.0,0.00010098]
[1766122087536,0.0058,86899.0,86896.0,0.00010098]
[1766122087891,0.01150814,86895.0,86867.0,1.0612]
[1766122088039,1.08557,86893.0,86875.0,0.00036313]
[1766122088386,0.2301896,86885.0,86875.0,1.06156313]
[1766122088546,0.0058,86884.0,86875.0,1.06156313]
[1766122089240,0.01730959,86884.0,86875.0,1.06156313]
[1766122089513,0.01150986,86882.0,86875.0,0.45787313]
[1766122089731,0.01150999,86881.0,86875.0,0.45787313]
[1766122089928,0.01150999,86881.0,86875.0,0.00036313]
[1766122090114,0.01150973,86883.0,86875.0,0.00036313]
[1766122090278,0.0058,86884.0,86875.0,0.00036313]
[1766122091068,0.01730959,86884.0,86875.0,0.00036313]
[1766122091323,0.24171098,86881.0,86875.0,0.00036313]
[1766122091518,0.23019462,86883.0,86881.0,0.001099]
[1766122091736,0.0058,86882.0,86881.0,0.001099]
[1766122091941,0.23599727,86882.0,86881.0,0.001099]
[1766122092094,0.01150999,86881.0,86875.0,0.00036313]
[1766122092306,0.23599727,86882.0,86875.0,0.00036313]
[1766122092307,0.24750713,86882.0,86875.0,0.00036313]
[1766122092900,0.2302027,86880.0,86875.0,0.00036313]
[1766122093101,0.01151026,86879.0,86875.0,0.00036313]
[1766122093505,0.24171282,86880.0,86875.0,0.00036313]
[1766122093904,0.23020545,86879.0,86875.0,0.00036313]
[1766122094402,0.23019462,86883.0,86875.0,0.00036313]
[1766122094403,0.91066326,86890.0,86875.0,0.00036313]
[1766122094605,0.0907,86895.0,86881.0,0.45751]
[1766122094839,0.0907,86895.0,86875.0,0.00036313]
[1766122094840,0.011508,86896.0,86886.0,1.0612]
[1766122095020,0.0058,86895.0,86886.0,1.0612]
[1766122095430,0.01730814,86895.0,86886.0,1.0612]
[1766122096006,0.0058,86895.0,86886.0,1.0612]
[1766122096210,0.01730814,86895.0,86886.0,1.0612]
[1766122096523,0.0058,86895.0,86886.0,1.0612]
[1766122098372,0.2416606,86899.0,86881.0,0.60369]
[1766122098569,0.2416606,86899.0,86880.0,0.0058]
[1766122098570,0.0058,86898.0,86880.0,0.0058]
[1766122098748,0.01730774,86898.0,86884.0,0.45751]
[1766122098927,0.24746289,86898.0,86886.0,0.45751]
[1766122099141,0.01730774,86898.0,86886.0,0.45751]
[1766122099584,0.24746272,86898.0,86886.0,0.45751]
[1766122099901,0.01150814,86895.0,86886.0,0.45751]
[1766122100118,0.01150787,86897.0,86886.0,0.45751]
[1766122100293,0.24167074,86896.0,86886.0,0.45751]
[1766122100495,0.23016404,86895.0,86886.0,0.45751]
[1766122100743,0.0058,86898.0,86886.0,0.45751]
[1766122100969,0.0180568,86904.0,86886.0,0.45751]
[1766122101205,0.01150747,86900.0,86888.0,1.0612]
[1766122101424,0.01150734,86901.0,86888.0,1.0612]
[1766122101647,0.01730721,86902.0,86888.0,1.0612]
[1766122101839,0.0058,86900.0,86883.0,0.60369]
[1766122102035,0.0058,86900.0,86888.0,0.45751]
[1766122102236,0.01730747,86900.0,86889.0,0.60369]
[1766122102397,0.0058,86900.0,86889.0,0.60369]
[1766122102916,0.01150761,86899.0,86889.0,0.60369]
[1766122103323,0.0058,86898.0,86888.0,0.45751]
[1766122104402,0.01150787,86897.0,86888.0,0.45751]
[1766122104756,0.24166625,86897.0,86888.0,0.45751]
[1766122106057,0.011508,86896.0,86888.0,0.45751]
[1766122106255,0.24166625,86897.0,86888.0,0.45751]
[1766122107081,0.011508,86896.0,86888.0,0.45751]
[1766122107295,0.01150814,86895.0,86888.0,0.45751]
[1766122107645,0.0115084,86893.0,86884.0,0.60369]
[1766122107849,0.01150853,86892.0,86884.0,0.60369]
[1766122108259,0.24167738,86893.0,86884.0,0.60369]
[1766122108673,0.24167861,86894.0,86884.0,0.60369]
[1766122109074,0.00580425,86896.0,86894.0,0.001099]
[1766122109296,0.0058,86897.0,86882.0,0.01730986]
[1766122109454,0.0058,86900.0,86886.0,0.60369]
[1766122109660,0.24164099,86906.0,86887.0,0.01381104]
[1766122109661,0.24164247,86906.0,86887.0,0.01381104]
[1766122109855,0.01730681,86905.0,86888.0,0.01961088]
[1766122110083,0.0058,86905.0,86891.0,1.0612]
[1766122110856,0.01150734,86901.0,86891.0,1.0612]
[1766122111064,0.01150708,86903.0,86891.0,1.0612]
[1766122111266,0.0058,86904.0,86889.0,1.0612]
[1766122111464,0.01150708,86903.0,86889.0,0.60369]
[1766122111744,0.01150708,86903.0,86891.0,0.60369]
[1766122111859,0.24164976,86903.0,86891.0,1.0612]
[1766122112058,0.23014468,86902.0,86891.0,1.0612]
[1766122112309,0.01150734,86901.0,86891.0,1.0612]
[1766122112700,0.01150747,86900.0,86891.0,1.0612]
[1766122113019,0.24166193,86899.0,86888.0,0.0058]
[1766122113224,0.24166336,86898.0,86888.0,0.0058]
[1766122113432,0.5861,86895.0,86886.0,0.0058]
[1766122113641,0.49947,86896.0,86886.0,0.0058]
[1766122113797,0.510978,86896.0,86886.0,0.0058]
[1766122113982,0.49947,86896.0,86886.0,0.0058]
[1766122114186,0.510978,86896.0,86886.0,0.0058]
[1766122114418,0.49947,86896.0,86886.0,0.0058]
[1766122114615,0.74113823,86896.0,86886.0,0.0058]
[1766122114886,0.510978,86896.0,86886.0,0.0058]
[1766122115029,0.49947,86896.0,86886.0,0.0058]
[1766122115445,0.0058,86898.0,86887.0,0.45751]
[1766122115662,0.0058,86898.0,86888.0,1.02871]
[1766122116166,0.0058,86898.0,86889.0,0.4596]
[1766122116335,0.0058,86898.0,86886.0,0.0058]
[1766122118199,0.0058,86898.0,86887.0,0.4596]
[1766122119682,0.0058,86898.0,86888.0,0.56911]
[1766122121383,0.01150787,86897.0,86887.0,0.4596]
[1766122121611,0.23015803,86897.0,86887.0,0.4596]
[1766122121916,0.01150787,86897.0,86886.0,0.0058]
[1766122122076,1.09235,86895.0,86886.0,0.0058]
[1766122122281,0.49562,86893.0,86886.0,0.0058]
[1766122126221,0.49562,86891.0,86886.0,0.0058]
[1766122126421,0.68922993,86896.0,86891.0,0.001099]
[1766122126736,0.0058,86896.0,86891.0,0.001099]
[1766122126897,0.0058,86896.0,86886.0,0.0058]
[1766122127102,0.017308,86896.0,86886.0,0.0058]
[1766122127432,0.70073793,86896.0,86886.0,0.0058]
[1766122128388,1.78157993,86896.0,86886.0,0.0058]
[1766122128589,1.79308793,86896.0,86886.0,0.0058]
[1766122128726,0.01150814,86895.0,86886.0,0.0058]
[1766122129286,1.79308793,86896.0,86886.0,0.0058]
[1766122129287,2.0232503,86896.0,86886.0,0.0058]
[1766122129518,1.10385827,86894.0,86886.0,0.0058]
[1766122130692,1.33402561,86894.0,86886.0,0.0058]
[1766122131093,0.24167654,86893.0,86886.0,0.0058]
[1766122131523,1.09235,86893.0,86886.0,0.0058]
[1766122131749,1.09235,86892.0,86886.0,0.0058]
[1766122133768,0.49562,86892.0,86886.0,0.0058]
[1766122134897,0.7372996,86892.0,86886.0,0.0058]
[1766122135220,0.01150867,86891.0,86886.0,0.0058]
[1766122135514,1.09235,86892.0,86886.0,0.0058]
[1766122136460,0.49562,86892.0,86886.0,0.0058]
[1766122136622,0.50712853,86892.0,86886.0,0.0058]
[1766122137008,0.01150893,86889.0,86886.0,0.0058]
[1766122137381,0.24168785,86889.0,86886.0,0.0058]
[1766122137548,0.24168785,86889.0,86875.0,0.04644313]
[1766122137549,0.24170994,86881.0,86875.0,0.00036313]
[1766122137707,0.01151012,86880.0,86875.0,0.00036313]
[1766122137900,0.01151026,86879.0,86875.0,0.00036313]
[1766122138095,0.01151039,86878.0,86875.0,3.13e-06]
[1766122138299,0.24171736,86879.0,86875.0,3.13e-06]
[1766122138500,1.10386026,86879.0,86875.0,3.13e-06]
[1766122138696,0.01151039,86878.0,86875.0,3.13e-06]
[1766122138936,1.32256317,86876.0,86875.0,3.13e-06]
[1766122144458,0.01151026,86879.0,86876.0,0.001099]
[1766122144668,0.23020891,86878.0,86876.0,0.001099]
[1766122144859,0.23021059,86877.0,86875.0,3.13e-06]
[1766122145902,0.62990026,86879.0,86877.0,0.001099]
[1766122146156,0.23021317,86876.0,86875.0,3.13e-06]
[1766122146747,0.24171826,86878.0,86875.0,3.13e-06]
[1766122146929,0.23021317,86876.0,86875.0,3.13e-06]
[1766122147550,1.24757317,86876.0,86875.0,3.13e-06]
[1766122149580,1.24757317,86876.0,86850.0,0.69494403]
[1766122149581,0.01151105,86873.0,86851.0,0.05499668]
[1766122150116,0.68342993,86880.0,86853.0,0.24178294]
[1766122150117,0.01731052,86877.0,86853.0,0.24178294]
[1766122150296,0.01731052,86877.0,86853.0,0.0115137]
[1766122150508,0.0058,86877.0,86857.0,0.48163]
[1766122150704,0.0058,86876.0,86865.0,0.05499668]
[1766122150956,0.0058,86876.0,86869.0,0.48163]
[1766122151373,0.01151039,86878.0,86869.0,0.48163]
[1766122151579,0.01731039,86878.0,86869.0,0.48163]
[1766122151789,0.0058,86878.0,86870.0,0.06881042]
[1766122152006,0.0058,86878.0,86872.0,0.56676]
[1766122152214,0.0058,86878.0,86873.0,0.48163]
[1766122153782,0.01151012,86880.0,86873.0,0.48163]
[1766122154086,0.01151012,86880.0,86873.0,1.04839]
[1766122154087,0.01151026,86879.0,86873.0,1.04839]
[1766122154502,0.01151039,86878.0,86873.0,0.48163]
[1766122154700,0.01151026,86879.0,86873.0,0.48163]
[1766122154902,0.01151012,86880.0,86873.0,0.48163]
[1766122155202,0.01150986,86882.0,86873.0,0.48163]
[1766122155386,0.93093676,86883.0,86873.0,0.48163]
[1766122155827,0.02956908,86886.0,86874.0,0.56676]
[1766122155828,0.01805975,86886.0,86874.0,0.56676]
[1766122156028,0.24167867,86893.0,86880.0,0.56676]
[1766122156199,0.01730827,86894.0,86883.0,0.48163]
[1766122156532,0.0058,86894.0,86883.0,0.48163]
[1766122156834,0.0115088,86890.0,86883.0,0.480531]
[1766122157071,0.0115088,86890.0,86879.0,0.0058]
[1766122157072,0.24168565,86890.0,86879.0,0.0058]
[1766122157244,0.24168789,86889.0,86879.0,0.0058]
[1766122157477,0.01150906,86888.0,86875.0,0.56676]
[1766122157690,0.68342993,86885.0,86874.0,0.0058]
[1766122157988,0.01151039,86878.0,86868.0,0.0058]
[1766122158108,1.01736,86875.0,86868.0,0.0058]
[1766122158992,0.01151039,86878.0,86868.0,0.0058]
[1766122159141,1.01736,86874.0,86867.0,3.04e-06]
[1766122159347,0.0058,86875.0,86867.0,3.04e-06]
[1766122159568,1.02316,86875.0,86867.0,3.04e-06]
[1766122160590,0.0058,86875.0,86867.0,3.04e-06]
[1766122160816,1.01736,86886.0,86868.0,0.48163]
[1766122161001,1.01736,86886.0,86867.0,3.04e-06]
[1766122161002,0.5658,86883.0,86867.0,3.04e-06]
[1766122161436,0.5658,86883.0,86867.0,1.04839304]